[Event "9th Amsterdam Science Park A 2019"]
[Site "Amsterdam"]
[Date "2019.07.11"]
[Round "6.6"]
[White "Wunnink, Michael"]
[Black "De Ruiter, Danny"]
[Result "1-0"]
[ECO "A48"]
[WhiteElo "2214"]
[BlackElo "2310"]
[Annotator "NA"]
[PlyCount "55"]
[EventDate "2019.07.06"]
[EventType "swiss"]
[EventCountry "NED"]
[SourceTitle "playchess.com"]
[Source "ChessBase"]
[SourceQuality "1"]
[TimeControl "40/5400+30:1800+30"]

1. d4 {[%emt 0:00:00]} Nf6 {[%emt 0:00:00]} 2. Nf3 {[%emt 0:00:00]} g6 {[%emt 0:00:57]} 3. c4 {[%emt 0:00:04]} Bg7 {[%emt 0:00:14]} 4. Nc3 {[%emt 0:00:06]} d5 {[%emt 0:00:29]} 5. cxd5 {[%emt 0:00:20]} Nxd5 {[%emt 0:00:06]} 6. Bg5 {[%emt 0:00:18]} Nxc3 {[%emt 0:02:33]} 7. bxc3 {[%emt 0:00:05]} O-O {[%emt 0:00:05]} 8. e3 {[%emt 0:12:01]} c5 {[%emt 0:06:22]} 9. Bd3 {[%emt 0:01:54]} Qa5 {[%emt 0:01:56]} 10. O-O {[%emt 0:04:00]} cxd4 {[%emt 0:05:06]} 11. cxd4 {[%emt 0:08:43]} Nc6 {[%emt 0:00:30]} 12. Be4 {[%emt 0:06:11]} e5 {[%emt 0:29:21]} 13. d5 {[%emt 0:10:06]} f5 {[%emt 0:01:25]} 14. Bc2 {[%emt 0:31:44]} Nb4 {[%emt 0:07:17]} 15. Bb3 {[%emt 0:01:31]} e4 {[%emt 0:00:35]} 16. d6+ {[%emt 0:00:33]} Kh8 {[%emt 0:00:05]} 17. Be7 {[%emt 0:02:45]} Bd7 {[%emt 0:13:49]} 18. Ng5 {[%emt 0:01:10]} h6 {[%emt 0:00:02]} 19. Nf7+ {[%emt 0:00:48]} Kh7 {[%emt 0:00:02]} 20. Bxf8 {[%emt 0:00:54]} Rxf8 {[%emt 0:00:03]} 21. Rc1 {[%emt 0:01:00]} Nc6 {[%emt 0:03:45]} 22. Bd5 {[%emt 0:05:38]} Bf6 {[%emt 0:06:42]} 23. Qb3 {[%emt 0:00:19]} Qb6 {[%emt 0:00:05]} 24. Rb1 {[%emt 0:03:15]} Qxb3 {[%emt 0:02:19]} 25. Rxb3 {[%emt 0:00:18]} Na5 {[%emt 0:00:06]} 26. Ra3 {[%emt 0:01:23]} Nc6 {[%emt 0:03:55]} 27. Rb1 {[%emt 0:00:13]} b6 {[%emt 0:00:48]} 28. Bxc6 {[%emt 0:00:27]} 1-0

[Event "9th Amsterdam Science Park A 2019"]
[Site "Amsterdam"]
[Date "2019.07.11"]
[Round "6.7"]
[White "Floor, Dirk"]
[Black "De Rover, Yong Hoon"]
[Result "0-1"]
[ECO "E73"]
[WhiteElo "2184"]
[BlackElo "2391"]
[Annotator "NA"]
[PlyCount "88"]
[EventDate "2019.07.06"]
[EventType "swiss"]
[EventCountry "NED"]
[SourceTitle "playchess.com"]
[Source "ChessBase"]
[SourceQuality "1"]
[TimeControl "40/5400+30:1800+30"]

1. d4 {[%emt 0:00:00]} Nf6 {[%emt 0:03:49]} 2. c4 {[%emt 0:00:13]} g6 {[%emt 0:00:32]} 3. Nc3 {[%emt 0:00:29]} Bg7 {[%emt 0:00:17]} 4. e4 {[%emt 0:00:11]} d6 {[%emt 0:00:14]} 5. Be2 {[%emt 0:00:32]} O-O {[%emt 0:00:33]} 6. Be3 {[%emt 0:00:11]} e5 {[%emt 0:01:18]} 7. d5 {[%emt 0:00:13]} Na6 {[%emt 0:00:18]} 8. h4 {[%emt 0:00:51]} Nc5 {[%emt 0:08:47]} 9. Bxc5 {[%emt 0:00:24]} dxc5 {[%emt 0:00:11]} 10. h5 {[%emt 0:00:09]} Ne8 {[%emt 0:03:12]} 11. h6 {[%emt 0:01:29]} Bf6 {[%emt 0:01:32]} 12. Nf3 {[%emt 0:03:20]} Nd6 {[%emt 0:02:41]} 13. Qd3 {[%emt 0:00:30]} Bd7 {[%emt 0:02:57]} 14. Qe3 {[%emt 0:01:33]} b6 {[%emt 0:02:03]} 15. a4 {[%emt 0:02:45]} Qc8 {[%emt 0:07:41]} 16. Kd1 {[%emt 0:03:34]} Re8 {[%emt 0:02:42]} 17. Kc2 {[%emt 0:05:56]} Bd8 {[%emt 0:01:28]} 18. Ng5 {[%emt 0:05:27]} f5 {[%emt 0:11:05]} 19. Ne6 {[%emt 0:02:59]} Bxe6 {[%emt 0:01:20]} 20. dxe6 {[%emt 0:00:05]} Qxe6 {[%emt 0:01:23]} 21. b3 {[%emt 0:01:03]} c6 {[%emt 0:10:20]} 22. Bf3 {[%emt 0:07:09]} Nf7 {[%emt 0:01:56]} 23. exf5 {[%emt 0:04:48]} gxf5 {[%emt 0:01:31]} 24. Bh5 {[%emt 0:03:05]} Bf6 {[%emt 0:01:54]} 25. g4 {[%emt 0:04:26]} Red8 {[%emt 0:06:41]} 26. Bxf7+ {[%emt 0:04:18]} Kxf7 {[%emt 0:00:39]} 27. Rh5 {[%emt 0:01:25]} e4 {[%emt 0:02:57]} 28. Rxf5 {[%emt 0:04:59]} Rd3 {[%emt 0:02:23]} 29. Rxf6+ {[%emt 0:07:51]} Qxf6 {[%emt 0:00:43]} 30. Nxe4 {[%emt 0:00:17]} Rxe3 {[%emt 0:02:20]} 31. Nxf6 {[%emt 0:00:11]} Re2+ {[%emt 0:00:27]} 32. Kd3 {[%emt 0:01:42]} Rxf2 {[%emt 0:00:09]} 33. Ne4 {[%emt 0:03:37]} Rf3+ {[%emt 0:02:29]} 34. Ke2 {[%emt 0:05:34]} Rf4 {[%emt 0:01:19]} 35. Ke3 {[%emt 0:00:51]} Rxg4 {[%emt 0:00:18]} 36. Rf1+ {[%emt 0:00:25]} Ke7 {[%emt 0:00:23]} 37. a5 {[%emt 0:02:48]} Re8 {[%emt 0:08:50]} 38. Nf6 {[%emt 0:03:49]} Rf8 {[%emt 0:01:05]} 39. Nxg4 {[%emt 0:05:05]} Rxf1 {[%emt 0:00:09]} 40. Ne5 {[%emt 0:01:02]} Kd6 {[%emt 0:00:27]} 41. Nf3 {[%emt 0:31:47]} Ke6 {[%emt 0:36:12]} 42. Kf4 {[%emt 0:03:21]} Kf6 {[%emt 0:00:45]} 43. Ke4 {[%emt 0:01:13]} Rb1 {[%emt 0:00:17]} 44. axb6 {[%emt 0:00:42]} axb6 {[%emt 0:00:09]} 0-1

[Event "9th Amsterdam Science Park A 2019"]
[Site "Amsterdam"]
[Date "2019.07.11"]
[Round "6.8"]
[White "Belous, Mikhail"]
[Black "Van der Velde, Henk"]
[Result "1-0"]
[ECO "D12"]
[WhiteElo "2289"]
[BlackElo "2135"]
[Annotator "NA"]
[PlyCount "73"]
[EventDate "2019.07.06"]
[EventType "swiss"]
[EventCountry "NED"]
[SourceTitle "playchess.com"]
[Source "ChessBase"]
[SourceQuality "1"]
[TimeControl "40/5400+30:1800+30"]

1. d4 {[%emt 0:00:00]} d5 {[%emt 0:00:00]} 2. c4 {[%emt 0:00:00]} c6 {[%emt 0:00:00]} 3. e3 {[%emt 0:00:00]} Nf6 {[%emt 0:00:03]} 4. Nf3 {[%emt 0:00:00]} Bf5 {[%emt 0:00:17]} 5. Nc3 {[%emt 0:00:22]} e6 {[%emt 0:00:15]} 6. Nh4 {[%emt 0:00:12]} Be4 {[%emt 0:01:05]} 7. f3 {[%emt 0:00:27]} Bg6 {[%emt 0:00:14]} 8. Qb3 {[%emt 0:01:43]} Qc7 {[%emt 0:01:09]} 9. cxd5 {[%emt 0:07:47]} cxd5 {[%emt 0:06:32]} 10. Bd2 {[%emt 0:02:48]} Nc6 {[%emt 0:02:31]} 11. Nxg6 {[%emt 0:02:35]} hxg6 {[%emt 0:00:14]} 12. O-O-O {[%emt 0:00:52]} a6 {[%emt 0:18:44]} 13. Kb1 {[%emt 0:07:41]} Bd6 {[%emt 0:12:02]} 14. e4 {[%emt 0:25:16]} Nxd4 {[%emt 0:29:38]} 15. Qa4+ {[%emt 0:00:41]} Nc6 {[%emt 0:00:03]} 16. Bg5 {[%emt 0:04:10]} O-O {[%emt 0:07:12]} 17. Bxf6 {[%emt 0:00:22]} gxf6 {[%emt 0:00:02]} 18. exd5 {[%emt 0:00:21]} Ne5 {[%emt 0:01:35]} 19. dxe6 {[%emt 0:07:23]} fxe6 {[%emt 0:00:18]} 20. Qb3 {[%emt 0:00:56]} Kf7 {[%emt 0:07:38]} 21. Be2 {[%emt 0:05:50]} Rfe8 {[%emt 0:01:20]} 22. Rhe1 {[%emt 0:01:47]} Kg7 {[%emt 0:01:47]} 23. h4 {[%emt 0:03:17]} b5 {[%emt 0:02:01]} 24. Ne4 {[%emt 0:01:34]} Bf8 {[%emt 0:00:26]} 25. Rc1 {[%emt 0:02:09]} Qb6 {[%emt 0:00:56]} 26. g4 {[%emt 0:02:42]} Nc6 {[%emt 0:00:51]} 27. g5 {[%emt 0:03:38]} Nd4 {[%emt 0:00:57]} 28. gxf6+ {[%emt 0:00:58]} Kf7 {[%emt 0:00:43]} 29. Qe3 {[%emt 0:01:42]} e5 {[%emt 0:01:35]} 30. h5 {[%emt 0:00:28]} Rac8 {[%emt 0:01:35]} 31. hxg6+ {[%emt 0:01:38]} Kxg6 {[%emt 0:00:05]} 32. Qg5+ {[%emt 0:00:49]} Kf7 {[%emt 0:00:02]} 33. Qh5+ {[%emt 0:00:52]} Ke6 {[%emt 0:00:36]} 34. Qg4+ {[%emt 0:00:45]} Nf5 {[%emt 0:00:44]} 35. Ng3 {[%emt 0:00:40]} Rxc1+ {[%emt 0:00:27]} 36. Rxc1 {[%emt 0:00:07]} Kxf6 {[%emt 0:00:42]} 37. Qxf5+ {[%emt 0:00:19]} 1-0

[Event "9th Amsterdam Science Park A 2019"]
[Site "Amsterdam"]
[Date "2019.07.11"]
[Round "6.9"]
[White "De Groote, Ewoud"]
[Black "Bogaard, Milo"]
[Result "1-0"]
[ECO "A81"]
[WhiteElo "2225"]
[BlackElo "2100"]
[Annotator "NA"]
[PlyCount "63"]
[EventDate "2019.07.06"]
[EventType "swiss"]
[EventCountry "NED"]
[SourceTitle "playchess.com"]
[Source "ChessBase"]
[SourceQuality "1"]
[TimeControl "40/5400+30:1800+30"]

1. d4 {[%emt 0:00:00]} f5 {[%emt 0:00:15]} 2. g3 {[%emt 0:00:00]} Nf6 {[%emt 0:00:05]} 3. Bg2 {[%emt 0:00:00]} e6 {[%emt 0:00:05]} 4. Nf3 {[%emt 0:00:00]} d5 {[%emt 0:00:08]} 5. O-O {[%emt 0:00:00]} Bd6 {[%emt 0:00:21]} 6. c4 {[%emt 0:00:08]} c6 {[%emt 0:00:06]} 7. b3 {[%emt 0:00:06]} Qe7 {[%emt 0:00:15]} 8. Ne5 {[%emt 0:00:11]} O-O {[%emt 0:18:59]} 9. Bf4 {[%emt 0:00:33]} Nh5 {[%emt 0:03:36]} 10. e3 {[%emt 0:00:25]} Nxf4 {[%emt 0:02:23]} 11. exf4 {[%emt 0:00:13]} Bxe5 {[%emt 0:02:59]} 12. fxe5 {[%emt 0:07:09]} b6 {[%emt 0:09:50]} 13. cxd5 {[%emt 0:07:07]} cxd5 {[%emt 0:01:19]} 14. Nc3 {[%emt 0:00:23]} Qd7 {[%emt 0:03:46]} 15. Qf3 {[%emt 0:18:08]} Rd8 {[%emt 0:10:14]} 16. Rfd1 {[%emt 0:10:37]} Nc6 {[%emt 0:14:10]} 17. Bf1 {[%emt 0:05:21]} a6 {[%emt 0:06:48]} 18. Rac1 {[%emt 0:00:18]} Ne7 {[%emt 0:08:53]} 19. Na4 {[%emt 0:02:38]} Qb7 {[%emt 0:01:26]} 20. Qc3 {[%emt 0:05:02]} b5 {[%emt 0:02:16]} 21. Nc5 {[%emt 0:00:17]} Qb6 {[%emt 0:00:50]} 22. a4 {[%emt 0:02:14]} b4 {[%emt 0:01:58]} 23. Qd2 {[%emt 0:04:30]} Nc6 {[%emt 0:00:49]} 24. g4 {[%emt 0:00:47]} fxg4 {[%emt 0:02:00]} 25. Qf4 {[%emt 0:01:06]} Rf8 {[%emt 0:00:32]} 26. Qxg4 {[%emt 0:00:07]} Nd8 {[%emt 0:00:34]} 27. Bd3 {[%emt 0:02:26]} Ra7 {[%emt 0:00:42]} 28. Kh1 {[%emt 0:01:53]} Rxf2 {[%emt 0:00:27]} 29. Rg1 {[%emt 0:02:45]} Raf7 {[%emt 0:00:58]} 30. Qh5 {[%emt 0:02:05]} R2f4 {[%emt 0:05:54]} 31. Bxh7+ {[%emt 0:00:54]} Kf8 {[%emt 0:00:07]} 32. Bg6 {[%emt 0:00:18]} 1-0

[Event "9th Amsterdam Science Park A 2019"]
[Site "Amsterdam"]
[Date "2019.07.11"]
[Round "6.10"]
[White "Honkoop, Gilian"]
[Black "Baarslag, Ed"]
[Result "1/2-1/2"]
[ECO "D00"]
[WhiteElo "2003"]
[BlackElo "2220"]
[Annotator "NA"]
[PlyCount "64"]
[EventDate "2019.07.06"]
[EventType "swiss"]
[EventCountry "NED"]
[SourceTitle "playchess.com"]
[Source "ChessBase"]
[SourceQuality "1"]
[TimeControl "40/5400+30:1800+30"]

1. d4 {[%emt 0:00:00]} d5 {[%emt 0:00:00]} 2. Bf4 {[%emt 0:00:00]} Nf6 {[%emt 0:05:48]} 3. e3 {[%emt 0:00:00]} e6 {[%emt 0:00:34]} 4. Nd2 {[%emt 0:00:00]} b6 {[%emt 0:00:31]} 5. Ngf3 {[%emt 0:00:22]} Bd6 {[%emt 0:00:59]} 6. Bg3 {[%emt 0:00:07]} Bb7 {[%emt 0:01:33]} 7. Bd3 {[%emt 0:00:08]} Nbd7 {[%emt 0:01:19]} 8. c3 {[%emt 0:01:51]} Ne4 {[%emt 0:03:04]} 9. Bxd6 {[%emt 0:08:17]} Nxd6 {[%emt 0:02:27]} 10. Qc2 {[%emt 0:01:20]} Nf6 {[%emt 0:10:44]} 11. O-O {[%emt 0:01:58]} O-O {[%emt 0:01:26]} 12. Ne5 {[%emt 0:01:57]} c5 {[%emt 0:01:27]} 13. Rae1 {[%emt 0:01:21]} Rc8 {[%emt 0:01:18]} 14. Qb1 {[%emt 0:00:08]} Nfe4 {[%emt 0:02:35]} 15. Nxe4 {[%emt 0:01:36]} dxe4 {[%emt 0:01:44]} 16. Be2 {[%emt 0:01:14]} f6 {[%emt 0:10:02]} 17. Nc4 {[%emt 0:00:13]} cxd4 {[%emt 0:07:21]} 18. Nxd6 {[%emt 0:00:04]} Qxd6 {[%emt 0:00:10]} 19. exd4 {[%emt 0:00:06]} e5 {[%emt 0:06:47]} 20. dxe5 {[%emt 0:13:21]} fxe5 {[%emt 0:01:13]} 21. Qc1 {[%emt 0:02:12]} Qg6 {[%emt 0:01:49]} 22. Qe3 {[%emt 0:06:18]} Rf4 {[%emt 0:04:25]} 23. f3 {[%emt 0:08:19]} Rcf8 {[%emt 0:03:39]} 24. fxe4 {[%emt 0:01:38]} Bxe4 {[%emt 0:00:22]} 25. g3 {[%emt 0:02:53]} Kh8 {[%emt 0:05:54]} 26. Bb5 {[%emt 0:09:16]} h5 {[%emt 0:11:39]} 27. Rxf4 {[%emt 0:12:48]} Rxf4 {[%emt 0:00:10]} 28. Rf1 {[%emt 0:00:35]} Rxf1+ {[%emt 0:01:30]} 29. Bxf1 {[%emt 0:00:18]} Qc6 {[%emt 0:03:52]} 30. Qe2 {[%emt 0:06:55]} Qc5+ {[%emt 0:01:19]} 31. Qf2 {[%emt 0:00:04]} Qd5 {[%emt 0:00:09]} 32. a3 {[%emt 0:00:01]} Kh7 {[%emt 0:01:04]} 1/2-1/2

[Event "9th Amsterdam Science Park A 2019"]
[Site "Amsterdam"]
[Date "2019.07.11"]
[Round "6.11"]
[White "Keuning, Selwin"]
[Black "Dimitrijeski, Kristian"]
[Result "1/2-1/2"]
[ECO "C48"]
[WhiteElo "2078"]
[BlackElo "2186"]
[Annotator "NA"]
[PlyCount "53"]
[EventDate "2019.07.06"]
[EventType "swiss"]
[EventCountry "NED"]
[SourceTitle "playchess.com"]
[Source "ChessBase"]
[SourceQuality "1"]
[TimeControl "40/5400+30:1800+30"]

1. e4 {[%emt 0:00:00]} e5 {[%emt 0:00:00]} 2. Nf3 {[%emt 0:00:00]} Nc6 {[%emt 0:00:00]} 3. Nc3 {[%emt 0:00:00]} Nf6 {[%emt 0:00:00]} 4. Bb5 {[%emt 0:00:00]} Nd4 {[%emt 0:00:12]} 5. Ba4 {[%emt 0:00:25]} Nxf3+ {[%emt 0:00:16]} 6. Qxf3 {[%emt 0:00:03]} Bc5 {[%emt 0:01:31]} 7. d3 {[%emt 0:00:28]} O-O {[%emt 0:01:19]} 8. Ne2 {[%emt 0:04:05]} c6 {[%emt 0:06:04]} 9. c3 {[%emt 0:01:39]} d5 {[%emt 0:08:55]} 10. h3 {[%emt 0:00:41]} Be6 {[%emt 0:05:29]} 11. O-O {[%emt 0:04:48]} Nd7 {[%emt 0:06:24]} 12. Ng3 {[%emt 0:05:48]} Qh4 {[%emt 0:06:46]} 13. Nf5 {[%emt 0:05:50]} dxe4 {[%emt 0:03:08]} 14. dxe4 {[%emt 0:03:53]} Qf6 {[%emt 0:01:01]} 15. Bc2 {[%emt 0:04:56]} Bxf5 {[%emt 0:08:25]} 16. exf5 {[%emt 0:04:01]} Rfe8 {[%emt 0:05:11]} 17. Re1 {[%emt 0:04:26]} Qh4 {[%emt 0:19:36]} 18. Bd2 {[%emt 0:14:40]} Nf6 {[%emt 0:00:51]} 19. Rad1 {[%emt 0:03:12]} Rad8 {[%emt 0:01:26]} 20. Bc1 {[%emt 0:08:47]} Rxd1 {[%emt 0:00:47]} 21. Rxd1 {[%emt 0:02:32]} e4 {[%emt 0:00:47]} 22. Qf4 {[%emt 0:01:11]} Qxf4 {[%emt 0:01:44]} 23. Bxf4 {[%emt 0:00:02]} Nd5 {[%emt 0:01:04]} 24. Bc1 {[%emt 0:00:48]} e3 {[%emt 0:02:57]} 25. fxe3 {[%emt 0:00:57]} Bxe3+ {[%emt 0:00:25]} 26. Bxe3 {[%emt 0:02:02]} Nxe3 {[%emt 0:00:09]} 27. Rd2 {[%emt 0:01:12]} 1/2-1/2

[Event "9th Amsterdam Science Park A 2019"]
[Site "Amsterdam"]
[Date "2019.07.11"]
[Round "6.12"]
[White "Smirnova, Ekaterina"]
[Black "Mienis, Dennis"]
[Result "1-0"]
[ECO "D32"]
[WhiteElo "2184"]
[BlackElo "1993"]
[Annotator "NA"]
[PlyCount "104"]
[EventDate "2019.07.06"]
[EventType "swiss"]
[EventCountry "NED"]
[SourceTitle "playchess.com"]
[Source "ChessBase"]
[SourceQuality "1"]
[TimeControl "40/5400+30:1800+30"]

1. d4 {[%emt 0:00:00]} d5 2. c4 {[%emt 0:00:00]} e6 {[%emt 0:00:00]} 3. Nc3 {[%emt 0:02:57]} c5 {[%emt 0:00:00]} 4. cxd5 {[%emt 0:02:07]} exd5 {[%emt 0:00:35]} 5. dxc5 {[%emt 0:02:02]} d4 6. Ne4 {[%emt 0:00:44]} Qd5 {[%emt 0:01:49]} 7. Nd6+ {[%emt 0:00:30]} Bxd6 {[%emt 0:00:09]} 8. cxd6 Qxd6 {[%emt 0:00:00]} 9. Nf3 {[%emt 0:03:13]} Nc6 {[%emt 0:05:14]} 10. g3 {[%emt 0:02:36]} Nf6 {[%emt 0:02:10]} 11. Bg2 {[%emt 0:02:06]} Qb4+ 12. Qd2 {[%emt 0:01:27]} Qb6 {[%emt 0:11:33]} 13. O-O {[%emt 0:04:11]} O-O {[%emt 0:14:51]} 14. e3 {[%emt 0:00:32]} Rd8 {[%emt 0:00:18]} 15. Nxd4 {[%emt 0:00:30]} Nxd4 {[%emt 0:00:30]} 16. exd4 {[%emt 0:07:11]} Be6 {[%emt 0:15:59]} 17. b3 {[%emt 0:02:45]} Rxd4 18. Qb2 Rd7 {[%emt 0:01:18]} 19. Be3 {[%emt 0:00:48]} Qa5 20. Rfd1 {[%emt 0:06:29]} Rad8 {[%emt 0:01:10]} 21. Rxd7 {[%emt 0:00:40]} Rxd7 {[%emt 0:00:15]} 22. Rc1 Qd8 {[%emt 0:12:00]} 23. Qc2 {[%emt 0:06:41]} a6 {[%emt 0:01:26]} 24. h3 {[%emt 0:14:33]} Nd5 {[%emt 0:01:39]} 25. Bd2 Rc7 26. Qb2 {[%emt 0:01:11]} Qc8 {[%emt 0:01:17]} 27. Rxc7 {[%emt 0:00:15]} Qxc7 {[%emt 0:08:09]} 28. Qd4 {[%emt 0:04:35]} Qc6 29. Kh2 h6 {[%emt 0:04:17]} 30. f4 {[%emt 0:05:48]} f6 {[%emt 0:01:53]} 31. a4 {[%emt 0:02:29]} b6 {[%emt 0:06:37]} 32. b4 {[%emt 0:01:32]} b5 {[%emt 0:02:09]} 33. axb5 {[%emt 0:02:44]} Qxb5 {[%emt 0:00:14]} 34. Qe4 {[%emt 0:02:34]} Nc7 {[%emt 0:00:56]} 35. Qc2 {[%emt 0:05:07]} Qc4 {[%emt 0:01:58]} 36. Qxc4 {[%emt 0:00:21]} Bxc4 {[%emt 0:00:07]} 37. g4 {[%emt 0:02:15]} Kf7 {[%emt 0:00:49]} 38. Kg3 {[%emt 0:00:09]} g5 {[%emt 0:02:08]} 39. f5 {[%emt 0:01:24]} Nd5 {[%emt 0:00:44]} 40. Kf3 {[%emt 0:00:35]} Ke7 41. Ke4 Kd6 {[%emt 0:32:29]} 42. Kd4 {[%emt 0:30:42]} Bb3 43. Be1 Nf4 {[%emt 0:00:00]} 44. Bg3 {[%emt 0:00:00]} Ba4 {[%emt 0:00:00]} 45. Bf1 {[%emt 0:00:00]} Bc6 {[%emt 0:00:00]} 46. Bxa6 {[%emt 0:00:00]} Bg2 {[%emt 0:00:00]} 47. Ke3 {[%emt 0:00:00]} Bxh3 {[%emt 0:00:00]} 48. Bxf4+ {[%emt 0:00:00]} gxf4+ {[%emt 0:00:00]} 49. Kxf4 {[%emt 0:00:00]} Bg2 {[%emt 0:00:00]} 50. Be2 {[%emt 0:00:00]} Kd5 {[%emt 0:00:00]} 51. Bf3+ {[%emt 0:00:00]} Bxf3 {[%emt 0:00:00]} 52. Kxf3 {[%emt 0:00:00]} Kc4 {[%emt 0:00:00]} 1-0

[Event "9th Amsterdam Science Park A 2019"]
[Site "Amsterdam"]
[Date "2019.07.12"]
[Round "7.2"]
[White "Zwirs, Nico"]
[Black "Arnaudov, G. Petar"]
[Result "1/2-1/2"]
[ECO "C50"]
[WhiteElo "2380"]
[BlackElo "2478"]
[Annotator "ChessBase"]
[PlyCount "57"]
[EventDate "2019.07.06"]
[EventType "swiss"]
[EventCountry "NED"]
[SourceTitle "playchess.com"]
[Source "ChessBase"]
[SourceQuality "1"]
[TimeControl "40/5400+30:1800+30"]

1. e4 {[%emt 0:00:00]} e5 {[%emt 0:00:00]} 2. Nf3 {[%emt 0:00:00]} Nc6 {[%emt 0:00:00]} 3. Bc4 {[%emt 0:00:00]} Bc5 {[%emt 0:00:00]} 4. d3 {[%emt 0:00:00]} Nf6 {[%emt 0:01:54]} 5. O-O {[%emt 0:00:08]} d6 {[%emt 0:00:12]} 6. c3 {[%emt 0:00:27]} a6 {[%emt 0:00:15]} 7. Bb3 {[%emt 0:00:37]} h6 {[%emt 0:00:32]} 8. Re1 {[%emt 0:24:26]} Ba7 {[%emt 0:00:07]} 9. Be3 {[%emt 0:01:13]} Bxe3 {[%emt 0:01:20]} 10. Rxe3 {[%emt 0:01:30]} O-O {[%emt 0:00:31]} 11. Nbd2 {[%emt 0:02:13]} d5 {[%emt 0:01:50]} 12. Re1 {[%emt 0:01:38]} dxe4 {[%emt 0:14:54]} 13. dxe4 {[%emt 0:00:28]} Nd7 {[%emt 0:04:11]} 14. Nc4 {[%emt 0:01:40]} Qf6 {[%emt 0:00:19]} 15. Ne3 {[%emt 0:00:56]} Nc5 {[%emt 0:00:11]} 16. Nd5 {[%emt 0:00:39]} Qd6 {[%emt 0:01:35]} 17. Qe2 {[%emt 0:05:02]} Nxb3 {[%emt 0:00:38]} 18. axb3 {[%emt 0:00:43]} Ne7 {[%emt 0:03:29]} 19. Rad1 {[%emt 0:02:04]} Nxd5 {[%emt 0:00:40]} 20. Rxd5 {[%emt 0:08:51]} Qb6 {[%emt 0:00:56]} 21. Nxe5 {[%emt 0:02:03]} Qxb3 {[%emt 0:09:31]} 22. Nd7 {[%emt 0:07:36]} c6 {[%emt 0:01:59]} 23. Nxf8 {[%emt 0:24:49]} cxd5 {[%emt 0:01:14]} 24. exd5 {[%emt 0:00:01]} Qxd5 {[%emt 0:10:05]} 25. Qe8 {[%emt 0:10:49]} Bh3 {[%emt 0:00:31]} 26. Ng6+ {[%emt 0:00:25]} Rxe8 {[%emt 0:00:30]} 27. Rxe8+ {[%emt 0:00:03]} Kh7 {[%emt 0:00:05]} 28. Nf8+ {[%emt 0:00:02]} Kg8 {[%emt 0:00:06]} 29. Ng6+ {[%emt 0:00:02]} 1/2-1/2

[Event "9th Amsterdam Science Park A 2019"]
[Site "Amsterdam"]
[Date "2019.07.12"]
[Round "7.3"]
[White "Van der Lende, Ilias"]
[Black "Wunnink, Michael"]
[Result "1-0"]
[ECO "A14"]
[WhiteElo "2350"]
[BlackElo "2214"]
[Annotator "NA"]
[PlyCount "87"]
[EventDate "2019.07.06"]
[EventType "swiss"]
[EventCountry "NED"]
[SourceTitle "playchess.com"]
[Source "ChessBase"]
[SourceQuality "1"]
[TimeControl "40/5400+30:1800+30"]

1. c4 {[%emt 0:00:00]} e6 {[%emt 0:00:00]} 2. Nf3 {[%emt 0:00:00]} Nf6 {[%emt 0:00:24]} 3. g3 {[%emt 0:00:10]} d5 {[%emt 0:00:39]} 4. Bg2 {[%emt 0:00:08]} Be7 {[%emt 0:00:32]} 5. O-O {[%emt 0:00:32]} O-O {[%emt 0:00:09]} 6. d4 {[%emt 0:00:09]} dxc4 {[%emt 0:00:23]} 7. Qc2 {[%emt 0:00:09]} b5 {[%emt 0:02:27]} 8. a4 {[%emt 0:02:39]} b4 {[%emt 0:00:11]} 9. Bg5 {[%emt 0:03:48]} c6 {[%emt 0:29:56]} 10. Nbd2 {[%emt 0:06:40]} c3 {[%emt 0:22:14]} 11. bxc3 {[%emt 0:04:52]} bxc3 {[%emt 0:00:14]} 12. Bxf6 {[%emt 0:05:02]} Bxf6 {[%emt 0:02:48]} 13. Qxc3 {[%emt 0:00:26]} Ba6 {[%emt 0:03:19]} 14. Rfe1 {[%emt 0:01:52]} Nd7 {[%emt 0:04:24]} 15. Qxc6 {[%emt 0:01:53]} Nb6 {[%emt 0:00:09]} 16. e3 {[%emt 0:12:14]} Rc8 {[%emt 0:01:09]} 17. Qe4 {[%emt 0:00:08]} Nd5 {[%emt 0:01:00]} 18. Bf1 {[%emt 0:11:02]} Nc3 {[%emt 0:00:29]} 19. Qg4 {[%emt 0:00:20]} Bb7 {[%emt 0:00:09]} 20. a5 {[%emt 0:04:59]} g6 {[%emt 0:02:34]} 21. h4 {[%emt 0:02:10]} h5 {[%emt 0:00:30]} 22. Qh3 {[%emt 0:00:04]} a6 {[%emt 0:02:38]} 23. Bg2 {[%emt 0:08:58]} Ne4 {[%emt 0:02:49]} 24. Nxe4 {[%emt 0:02:35]} Bxe4 {[%emt 0:00:05]} 25. Nd2 {[%emt 0:00:33]} Bf5 {[%emt 0:00:26]} 26. Qh1 {[%emt 0:00:07]} e5 {[%emt 0:00:20]} 27. e4 {[%emt 0:03:14]} Bg4 {[%emt 0:00:06]} 28. d5 {[%emt 0:00:08]} Rc2 {[%emt 0:01:45]} 29. Nf1 {[%emt 0:03:04]} Rc5 {[%emt 0:01:16]} 30. Bh3 {[%emt 0:05:41]} Rxa5 {[%emt 0:01:01]} 31. Bxg4 {[%emt 0:00:17]} hxg4 {[%emt 0:00:51]} 32. Ne3 {[%emt 0:00:07]} Rxa1 {[%emt 0:00:57]} 33. Rxa1 {[%emt 0:00:07]} Qc8 {[%emt 0:01:59]} 34. Kg2 {[%emt 0:01:42]} Bd8 {[%emt 0:01:03]} 35. Rc1 {[%emt 0:07:30]} Qd7 {[%emt 0:06:00]} 36. Rc6 {[%emt 0:00:31]} Kg7 {[%emt 0:06:52]} 37. Qa1 {[%emt 0:01:03]} Re8 {[%emt 0:05:32]} 38. Qxa6 {[%emt 0:00:26]} Kh7 {[%emt 0:00:37]} 39. Rd6 {[%emt 0:02:43]} Qc7 {[%emt 0:00:50]} 40. Qc6 {[%emt 0:00:07]} Rf8 {[%emt 0:00:41]} 41. Rd7 {[%emt 0:33:28]} Qa5 {[%emt 0:02:56]} 42. Qd6 {[%emt 0:00:00]} Kg8 {[%emt 0:06:24]} 43. Nxg4 {[%emt 0:00:00]} Bb6 {[%emt 0:01:45]} 44. h5 {[%emt 0:00:00]} 1-0